fUSD/lending_fUSD_20250119
["ID","MTS","AMOUNT","RATE_DAILY","PERIOD"]
[349622116,1737330650573,-500.0,0.00020761,2]
[349622117,1737330650582,-500.0,0.00020761,2]
[349622118,1737330650592,-500.0,0.00020761,2]
[349622119,1737330650601,-500.0,0.00020761,2]
[349622120,1737330650610,-500.0,0.00020761,2]
[349622121,1737330650620,-500.0,0.00020761,2]
[349622122,1737330650630,-500.0,0.00020761,2]
[349622123,1737330650639,-500.0,0.00020761,2]
[349622124,1737330650652,-500.0,0.00020761,2]
[349622125,1737330650661,-500.0,0.00020761,2]
[349622126,1737330650672,-398.48,0.00020761,2]
[349622127,1737330650682,-500.0,0.00020761,2]
[349622128,1737330650692,-500.0,0.00020761,2]
[349622129,1737330650707,-500.0,0.00020761,2]
[349622130,1737330650716,-500.0,0.00020761,2]
[349622131,1737330650726,-500.0,0.00020761,2]
[349622132,1737330650735,-500.0,0.00020761,2]
[349622133,1737330650745,-1308.99,0.00020761,2]
[349622134,1737330650755,-500.0,0.00020761,2]
[349622135,1737330650764,-601.71296902,0.00020761,2]
[349622136,1737330650793,-4.91703098,0.00020761,2]
[349622137,1737330650803,-500.0,0.00020761,2]
[349622138,1737330650813,-1986.62,0.00020761,2]
[349622139,1737330650823,-500.0,0.00020761,2]
[349622140,1737330650833,-500.0,0.00020761,2]
[349622141,1737330650842,-500.0,0.00020761,2]
[349622142,1737330650852,-500.0,0.00020761,2]
[349622143,1737330650862,-1009.8,0.00020761,2]
[349622144,1737330650872,-500.0,0.00020761,2]
[349622145,1737330650882,-2149.63,0.00020761,2]
[349622146,1737330650892,-460.31,0.00020761,2]
[349622147,1737330650902,-500.0,0.00020761,2]
[349622148,1737330650912,-500.0,0.00020761,2]
[349622149,1737330650921,-713.89,0.00020761,2]
[349622150,1737330650931,-500.0,0.00020761,2]
[349622151,1737330650942,-884.71,0.00020761,2]
[349622152,1737330650959,-500.0,0.00020761,2]
[349622153,1737330650969,-500.0,0.00020761,2]
[349622154,1737330650979,-2029.73,0.00020761,2]
[349622155,1737330650989,-500.0,0.00020761,2]
[349622156,1737330650999,-500.0,0.00020761,2]
[349622157,1737330651008,-640.47,0.00020761,2]
[349622158,1737330651018,-500.0,0.00020761,2]
[349622159,1737330651028,-1116.22,0.00020761,2]
[349622160,1737330651039,-1752.28,0.00020761,2]
[349622161,1737330651049,-794.49,0.00020761,2]
[349622162,1737330651059,-500.0,0.00020761,2]
[349622163,1737330651068,-3012.1,0.00020761,2]
[349622164,1737330651077,-687.59,0.00020761,2]
[349622165,1737330651087,-742.97,0.00020761,2]
[349622166,1737330651096,-500.0,0.00020761,2]
[349622167,1737330651106,-1315.8,0.00020761,2]
[349622168,1737330651115,-500.0,0.00020761,2]
[349622169,1737330651125,-738.6,0.00020761,2]
[349622170,1737330651135,-1337.5,0.00020761,2]
[349622171,1737330651144,-504.37,0.00020761,2]
[349622172,1737330651154,-538.08,0.00020761,2]
[349622173,1737330651163,-500.0,0.00020761,2]
[349622174,1737330651172,-1154.28,0.00020761,2]
[349622175,1737330651181,-586.93,0.00020761,2]
[349622176,1737330651191,-2419.72,0.00020761,2]
[349622177,1737330651205,-1243.34,0.00020761,2]
[349622178,1737330651215,-684.1,0.00020761,2]
[349622179,1737330651223,-1396.29,0.00020761,2]
[349622180,1737330651233,-500.0,0.00020761,2]
[349622181,1737330651242,-501.40623838,0.00020761,2]
[349622182,1737330651252,-765.77,0.00020761,2]
[349622183,1737330651261,-500.0,0.00020761,2]
[349622184,1737330651271,-554.76,0.00020761,2]
[349622185,1737330651281,-629.46,0.00020761,2]
[349622186,1737330651290,-500.0,0.00020761,2]
[349622187,1737330651300,-713.57,0.00020761,2]
[349622188,1737330651309,-500.0,0.00020761,2]
[349622189,1737330651318,-2188.94,0.00020761,2]
[349622190,1737330651327,-756.18,0.00020761,2]
[349622191,1737330651336,-500.0,0.00020761,2]
[349622192,1737330651345,-477.69,0.00020762,2]
[349622193,1737330651355,-500.0,0.00020762,2]
[349622194,1737330651364,-500.0,0.00020762,2]
[349622195,1737330651374,-500.0,0.00020762,2]
[349622196,1737330651383,-500.0,0.00020762,2]
[349622197,1737330651392,-500.0,0.00020762,2]
[349622198,1737330651401,-220.08,0.00020762,2]
[349622199,1737330651410,-360.13,0.00020762,2]
[349622200,1737330651419,-500.0,0.00020762,2]
[349622201,1737330651429,-500.0,0.00020762,2]
[349622202,1737330651440,-500.0,0.00020762,2]
[349622203,1737330651454,-500.0,0.00020762,2]
[349622204,1737330651463,-500.0,0.00020762,2]
[349622205,1737330651474,-500.0,0.00020762,2]
[349622206,1737330651483,-500.0,0.00020762,2]
[349622207,1737330651492,-500.0,0.00020762,2]
[349622208,1737330651501,-500.0,0.00020762,2]
[349622209,1737330651510,-500.0,0.00020762,2]
[349622210,1737330651519,-500.0,0.00020762,2]
[349622211,1737330651529,-500.0,0.00020762,2]
[349622212,1737330651538,-500.0,0.00020762,2]
[349622213,1737330651547,-169.77240835,0.00020762,2]
[349622214,1737330651556,-500.0,0.00020762,2]
[349622215,1737330651565,-500.0,0.00020762,2]
[349622216,1737330651575,-500.0,0.00020762,2]
[349622217,1737330651585,-500.0,0.00020762,2]
[349622218,1737330651594,-500.0,0.00020762,2]
[349622219,1737330651603,-489.34553497,0.00020762,2]
[349622220,1737330651613,-567.92339943,0.00020762,2]
[349622221,1737330651624,-500.0,0.00020762,2]
[349622222,1737330651633,-500.0,0.00020762,2]
[349622223,1737330651643,-500.0,0.00020762,2]
[349622224,1737330651654,-500.0,0.00020762,2]
[349622225,1737330651663,-500.0,0.00020762,2]
[349622226,1737330651673,-500.0,0.00020762,2]
[349622227,1737330651683,-500.0,0.00020762,2]
[349622228,1737330651694,-500.0,0.00020762,2]
[349622229,1737330651709,-500.0,0.00020762,2]
[349622230,1737330651718,-500.0,0.00020762,2]
[349622231,1737330651728,-500.0,0.00020762,2]
[349622232,1737330651738,-202.40737307,0.00020762,2]
[349622233,1737330651747,-194.93,0.00020767,2]
[349622234,1737330651756,-500.0,0.00020787,2]
[349622235,1737330651765,-500.0,0.00020787,2]
[349622236,1737330651775,-500.0,0.00020787,2]
[349622237,1737330651784,-11101.62668313,0.0002079,2]
[349622238,1737330651793,-271.3,0.00020791,2]
[349622239,1737330651802,-277.24137036,0.00020795,2]
[349622240,1737330651813,-203.37981308,0.00020808,2]
[349622241,1737330651822,-203.37981308,0.00020814,2]
[349622242,1737330651831,-11101.62668313,0.00020816,2]
[349622243,1737330651841,-277.24137036,0.00020831,2]
[349622244,1737330651851,-11101.62668313,0.00020838,2]
[349622245,1737330651860,-295.47705749,0.0002084,2]
[349622246,1737330651869,-500.0,0.0002084,2]
[349622247,1737330651879,-500.61647819,0.0002084,2]
[349622248,1737330651888,-500.0,0.00020841,2]
[349622249,1737330652037,-500.0,0.00020841,2]
[349622250,1737330652051,-500.0,0.00020841,2]
[349622251,1737330652061,-163.3233948,0.0002087,2]
[349622252,1737330652071,-203.37981308,0.00020878,2]
[349622253,1737330652082,-200.0,0.0002088,2]
[349622254,1737330652091,-11101.62668313,0.0002089,2]
[349622255,1737330652102,-166.80627001,0.00020907,2]
[349622256,1737330652113,-203.37981308,0.00020916,2]
[349622257,1737330652122,-277.24137036,0.00020918,2]
[349622258,1737330652132,-277.24137036,0.00020919,2]
[349622259,1737330652141,-11101.62668313,0.00020942,2]
[349622260,1737330652151,-203.37981308,0.00020947,2]
[349622261,1737330652160,-277.24137036,0.00020948,2]
[349622262,1737330652169,-500.0,0.00020981,2]
[349622263,1737330652178,-500.0,0.00020981,2]
[349622264,1737330652187,-500.0,0.00020981,2]
[349622265,1737330652196,-318.39679173,0.00020981,2]
[349622266,1737330652210,-500.0,0.00020981,2]
[349622267,1737330652219,-500.0,0.00020981,2]
[349622268,1737330652228,-501.25007264,0.00020981,2]
[349622269,1737330652236,-500.0,0.00020981,2]
[349622270,1737330652245,-453.13394462,0.00020981,2]
[349622271,1737330652254,-500.0,0.00020981,2]
[349622272,1737330652264,-500.0,0.00020981,2]
[349622273,1737330652273,-500.0,0.00020981,2]
[349622274,1737330652282,-500.0,0.00020981,2]
[349622275,1737330652292,-204.90952584,0.00020981,2]
[349622276,1737330652301,-500.0,0.00020981,2]
[349622277,1737330652310,-500.0,0.00020981,2]
[349622278,1737330652319,-500.0,0.00020981,2]
[349622279,1737330652328,-500.0,0.00020981,2]
[349622280,1737330652338,-500.0,0.00020981,2]
[349622281,1737330652347,-500.0,0.00020981,2]
[349622282,1737330652356,-500.0,0.00020981,2]
[349622283,1737330652365,-500.0,0.00020981,2]
[349622284,1737330652375,-500.0,0.00020981,2]
[349622285,1737330652384,-500.0,0.00020981,2]
[349622286,1737330652393,-500.0,0.00020981,2]
[349622287,1737330652402,-420.278442,0.00020981,2]
[349622288,1737330652411,-500.0,0.00020981,2]
[349622289,1737330652421,-500.0,0.00020981,2]
[349622290,1737330652430,-500.0,0.00020981,2]
[349622291,1737330652440,-500.0,0.00020981,2]
[349622292,1737330652454,-500.0,0.00020981,2]
[349622293,1737330652464,-500.0,0.00020981,2]
[349622294,1737330652473,-500.0,0.00020981,2]
[349622295,1737330652483,-500.0,0.00020981,2]
[349622296,1737330652492,-500.0,0.00020981,2]
[349622297,1737330652501,-500.0,0.00020981,2]
[349622298,1737330652510,-500.0,0.00020981,2]
[349622299,1737330652519,-500.0,0.00020981,2]
[349622300,1737330652528,-547.399141,0.00020981,2]
[349622301,1737330652537,-500.0,0.00020981,2]
[349622302,1737330652548,-500.0,0.00020981,2]
[349622303,1737330652557,-500.0,0.00020981,2]
[349622304,1737330652569,-500.0,0.00020981,2]
[349622305,1737330652579,-500.0,0.00020981,2]
[349622306,1737330652588,-500.0,0.00020981,2]
[349622307,1737330652598,-500.0,0.00020981,2]
[349622308,1737330652607,-500.0,0.00020981,2]
[349622309,1737330652616,-500.0,0.00020981,2]
[349622310,1737330652627,-500.0,0.00020981,2]
[349622311,1737330652636,-500.0,0.00020981,2]
[349622312,1737330652645,-541.4,0.00020981,2]
[349622313,1737330652657,-506.04401327,0.00020981,2]
[349622314,1737330652666,-500.0,0.00020981,2]
[349622315,1737330652677,-500.0,0.00020981,2]
[349622316,1737330652686,-648.63,0.00020981,2]
[349622317,1737330652696,-500.0,0.00020981,2]
[349622318,1737330652709,-500.0,0.00020981,2]
[349622319,1737330652717,-500.0,0.00020981,2]
[349622320,1737330652727,-500.0,0.00020981,2]
[349622321,1737330652737,-500.0,0.00020981,2]
[349622322,1737330652746,-500.0,0.00020981,2]
[349622323,1737330652756,-1060.96,0.00020981,2]
[349622324,1737330652765,-500.0,0.00020981,2]
[349622325,1737330652774,-500.0,0.00020981,2]
[349622326,1737330652784,-500.0,0.00020981,2]
[349622327,1737330652793,-322.48757551,0.00020981,2]
[349622328,1737330652803,-500.0,0.00020981,2]
[349622329,1737330652812,-500.0,0.00020981,2]
[349622330,1737330652822,-500.0,0.00020981,2]
[349622331,1737330652831,-500.0,0.00020981,2]
[349622332,1737330652841,-434.08,0.00020981,2]
[349622333,1737330652850,-500.0,0.00020981,2]
[349622334,1737330652860,-799.96,0.00020981,2]
[349622335,1737330652870,-500.0,0.00020982,2]
[349622336,1737330652880,-186.21186872,0.00020982,2]
[349622337,1737330652890,-500.0,0.00020982,2]
[349622338,1737330652900,-521.62737008,0.00020984,2]
[349622339,1737330652909,-173.56,0.00021,2]
[349622340,1737330652919,-337.14997497,0.00021007,2]
[349622341,1737330652929,-500.0,0.00021034,2]
[349622342,1737330652938,-500.0,0.00021034,2]
[349622343,1737330652950,-500.0,0.00021034,2]
[349622344,1737330652960,-500.0,0.00021034,2]
[349622345,1737330652970,-500.0,0.00021034,2]
[349622346,1737330652980,-513.16,0.00021034,2]
[349622347,1737330652990,-500.0,0.00021034,2]
[349622348,1737330652999,-500.0,0.00021034,2]
[349622349,1737330653009,-500.0,0.00021034,2]
[349622350,1737330653019,-2716.12,0.00021034,2]
[349622351,1737330653028,-172.01186153,0.00021034,2]
[349622352,1737330653038,-697.66,0.00021034,2]
[349622353,1737330653047,-2200.29,0.00021034,2]
[349622354,1737330653057,-500.0,0.00021034,2]
[349622355,1737330653067,-571.27,0.00021034,2]
[349622356,1737330653076,-500.0,0.00021034,2]
[349622357,1737330653085,-500.0,0.00021034,2]
[349622358,1737330653095,-500.0,0.00021034,2]
[349622359,1737330653104,-500.0,0.00021034,2]
[349622360,1737330653114,-1108.47,0.00021034,2]
[349622361,1737330653123,-500.0,0.00021034,2]
[349622362,1737330653132,-500.0,0.00021034,2]
[349622363,1737330653141,-1219.2,0.00021034,2]
[349622364,1737330653150,-524.65,0.00021035,2]
[349622365,1737330653159,-500.0,0.00021035,2]
[349622366,1737330653168,-500.0,0.00021035,2]
[349622367,1737330653177,-510.28,0.00021035,2]
[349622368,1737330653186,-301.48,0.00021035,2]
[349622369,1737330653195,-500.0,0.00021035,2]
[349622370,1737330653207,-437.12,0.00021035,2]
[349622371,1737330653216,-500.0,0.00021035,2]
[349622372,1737330653225,-500.0,0.00021035,2]
[349622373,1737330653234,-593.34456267,0.00021035,2]
[349622374,1737330653243,-500.0,0.00021035,2]
[349622375,1737330653252,-518.32,0.00021035,2]
[349622376,1737330653262,-500.0,0.00021035,2]
[349622377,1737330653271,-500.0,0.00021035,2]
[349622378,1737330653280,-500.0,0.00021035,2]
[349622379,1737330653289,-500.0,0.00021035,2]
[349622380,1737330653299,-500.0,0.00021035,2]
[349622381,1737330653310,-500.0,0.00021035,2]
[349622382,1737330653320,-500.0,0.00021035,2]
[349622383,1737330653330,-500.0,0.00021035,2]
[349622384,1737330653339,-500.0,0.00021035,2]
[349622385,1737330653351,-500.0,0.00021035,2]
[349622386,1737330653360,-500.0,0.00021035,2]
[349622387,1737330653369,-500.0,0.00021035,2]
[349622388,1737330653377,-500.0,0.00021035,2]
[349622389,1737330653386,-500.0,0.00021035,2]
[349622390,1737330653395,-500.0,0.00021035,2]
[349622391,1737330653404,-500.0,0.00021035,2]
[349622392,1737330653413,-500.0,0.00021035,2]
[349622393,1737330653422,-500.0,0.00021035,2]
[349622394,1737330653432,-500.0,0.00021035,2]
[349622395,1737330653442,-500.0,0.00021035,2]
[349622396,1737330653455,-500.0,0.00021035,2]
[349622397,1737330653464,-500.0,0.00021035,2]
[349622398,1737330653473,-500.0,0.00021035,2]
[349622399,1737330653483,-500.0,0.00021035,2]
[349622400,1737330653492,-500.0,0.00021035,2]
[349622401,1737330653501,-500.0,0.00021035,2]
[349622402,1737330653511,-500.0,0.00021035,2]
[349622403,1737330653520,-500.0,0.00021035,2]
[349622404,1737330653529,-500.0,0.00021035,2]
[349622405,1737330653538,-500.0,0.00021035,2]
[349622406,1737330653548,-500.0,0.00021035,2]
[349622407,1737330653557,-500.0,0.00021035,2]
[349622408,1737330653566,-517.36498261,0.00021035,2]
[349622409,1737330653575,-1308.99,0.00021035,2]
[349622410,1737330653584,-500.0,0.00021035,2]
[349622411,1737330653593,-606.63,0.00021035,2]
[349622412,1737330653603,-500.0,0.00021035,2]
[349622413,1737330653612,-1986.62,0.00021035,2]
[349622414,1737330653622,-500.0,0.00021035,2]
[349622415,1737330653634,-500.0,0.00021035,2]
[349622416,1737330653644,-500.0,0.00021035,2]
[349622417,1737330653653,-1009.8,0.00021035,2]
[349622418,1737330653662,-500.0,0.00021035,2]
[349622419,1737330653673,-2149.63,0.00021035,2]
[349622420,1737330653682,-500.0,0.00021035,2]
[349622421,1737330653691,-500.0,0.00021035,2]
[349622422,1737330653704,-713.89,0.00021035,2]
[349622423,1737330653713,-191.34627932,0.00021035,2]
[349622424,1737330653723,-884.71,0.00021035,2]
[349622425,1737330653733,-500.0,0.00021035,2]
[349622426,1737330653742,-500.0,0.00021035,2]
[349622427,1737330653753,-2029.73,0.00021035,2]
[349622428,1737330653763,-500.0,0.00021035,2]
[349622429,1737330653772,-500.0,0.00021035,2]
[349622430,1737330653782,-640.47,0.00021035,2]
[349622431,1737330653792,-500.0,0.00021035,2]
[349622432,1737330653801,-1116.22,0.00021035,2]
[349622433,1737330653811,-1752.28,0.00021035,2]
[349622434,1737330653820,-794.49,0.00021035,2]
[349622435,1737330653829,-500.0,0.00021035,2]
[349622436,1737330653839,-3012.1,0.00021035,2]
[349622437,1737330653848,-687.59,0.00021035,2]
[349622438,1737330653857,-742.97,0.00021035,2]
[349622439,1737330653867,-390.01320827,0.00021035,2]
[349622440,1737330653876,-1315.8,0.00021035,2]
[349622441,1737330653886,-500.0,0.00021035,2]
[349622442,1737330653895,-738.6,0.00021035,2]
[349622443,1737330653904,-1337.5,0.00021035,2]
[349622444,1737330653913,-538.08,0.00021035,2]
[349622445,1737330653922,-500.0,0.00021035,2]
[349622446,1737330653932,-1154.28,0.00021035,2]
[349622447,1737330653941,-586.93,0.00021035,2]
[349622448,1737330653953,-1519.56056382,0.00021035,2]
[349622449,1737330653968,-900.15943618,0.00021035,2]
[349622450,1737330653977,-1243.34,0.00021035,2]
[349622451,1737330653987,-684.1,0.00021035,2]
[349622452,1737330653995,-1396.29,0.00021035,2]
[349622453,1737330654005,-765.77,0.00021035,2]
[349622454,1737330654014,-500.0,0.00021035,2]
[349622455,1737330654024,-554.76,0.00021035,2]
[349622456,1737330654033,-629.46,0.00021035,2]
[349622457,1737330654043,-500.0,0.00021035,2]
[349622458,1737330654052,-713.57,0.00021035,2]
[349622459,1737330654061,-500.0,0.00021035,2]
[349622460,1737330654071,-2188.94,0.00021035,2]
[349622461,1737330654080,-756.18,0.00021035,2]
[349622462,1737330654089,-500.0,0.00021035,2]
[349622463,1737330654099,-500.0,0.00021036,2]
[349622464,1737330654107,-500.0,0.00021036,2]
[349622465,1737330654116,-500.0,0.00021036,2]
[349622466,1737330654125,-500.0,0.00021036,2]
[349622467,1737330654133,-500.0,0.00021036,2]
[349622468,1737330654142,-500.0,0.00021036,2]
[349622469,1737330654151,-500.0,0.00021036,2]
[349622470,1737330654160,-500.0,0.00021036,2]
[349622471,1737330654169,-489.09526748,0.00021036,2]
[349622472,1737330654179,-500.0,0.00021036,2]
[349622473,1737330654188,-500.0,0.00021036,2]
[349622474,1737330654197,-500.0,0.00021036,2]
[349622475,1737330654207,-500.0,0.00021036,2]
[349622476,1737330654216,-520.07,0.00021036,2]
[349622477,1737330654225,-535.25795485,0.00021036,2]
[349622478,1737330654234,-189.8,0.00021036,2]
[349622479,1737330654243,-500.0,0.00021036,2]
[349622480,1737330654253,-500.0,0.00021036,2]
[349622481,1737330654262,-500.0,0.00021036,2]
[349622482,1737330654271,-500.0,0.00021036,2]
[349622483,1737330654280,-500.0,0.00021036,2]
[349622484,1737330654289,-500.0,0.00021036,2]
[349622485,1737330654298,-500.0,0.00021036,2]
[349622486,1737330654309,-500.0,0.00021036,2]
[349622487,1737330654318,-159.02768935,0.00021036,2]
[349622488,1737330654328,-500.0,0.00021036,2]
[349622489,1737330654337,-500.0,0.00021036,2]
[349622490,1737330654346,-500.0,0.00021061,2]
[349622491,1737330654356,-500.0,0.00021061,2]
[349622492,1737330654366,-500.0,0.00021061,2]
[349622493,1737330654375,-200.0,0.00021075,2]
[349622494,1737330654384,-166.80627001,0.00021105,2]
[349622495,1737330654394,-500.0,0.00021115,2]
[349622496,1737330654403,-437.55,0.00021178,2]
[349622497,1737330654412,-301.07,0.00021178,2]
[349622498,1737330654421,-437.55,0.00021178,2]
[349622499,1737330654430,-150.0,0.00021178,2]
[349622500,1737330654440,-437.55,0.00021178,2]
[349622501,1737330654451,-300.77,0.00021178,2]
[349622502,1737330654460,-150.0,0.00021178,2]
[349622503,1737330654469,-150.0,0.00021178,2]
[349622504,1737330654478,-437.55,0.00021178,2]
[349622505,1737330654487,-150.0,0.00021178,2]
[349622506,1737330654496,-150.0,0.00021178,2]
[349622507,1737330654505,-437.55,0.00021178,2]
[349622508,1737330654515,-150.0,0.00021178,2]
[349622509,1737330654524,-150.0,0.00021178,2]
[349622510,1737330654534,-150.0,0.00021178,2]
[349622511,1737330654543,-437.55,0.00021178,2]
[349622512,1737330654552,-150.0,0.00021178,2]
[349622513,1737330654561,-437.55,0.00021178,2]
[349622514,1737330654570,-150.0,0.00021178,2]
[349622515,1737330654579,-150.0,0.00021178,2]
[349622516,1737330654588,-437.55,0.00021178,2]
[349622517,1737330654597,-437.55,0.00021178,2]
[349622518,1737330654606,-150.0,0.00021178,2]
[349622519,1737330654615,-437.55,0.00021178,2]
[349622520,1737330654626,-150.0,0.00021178,2]
[349622521,1737330654636,-150.0,0.00021178,2]
[349622522,1737330654648,-437.55,0.00021178,2]
[349622523,1737330654660,-437.55,0.00021178,2]
[349622524,1737330654669,-150.0,0.00021178,2]
[349622525,1737330654678,-437.55,0.00021178,2]
[349622526,1737330654687,-150.0,0.00021178,2]
[349622527,1737330654697,-437.55,0.00021178,2]
[349622528,1737330654709,-150.0,0.00021178,2]
[349622529,1737330654718,-150.0,0.00021178,2]
[349622530,1737330654729,-435.06,0.00021178,2]
[349622531,1737330654738,-150.0,0.00021178,2]
[349622532,1737330654747,-150.0,0.00021178,2]
[349622533,1737330654756,-150.0,0.00021178,2]
[349622534,1737330654766,-150.0,0.00021178,2]
[349622535,1737330654775,-150.0,0.00021178,2]
[349622536,1737330654784,-150.0,0.00021178,2]
[349622537,1737330654793,-150.0,0.00021178,2]
[349622538,1737330654803,-150.0,0.00021178,2]
[349622539,1737330654813,-150.0,0.00021178,2]
[349622540,1737330654823,-521.62737008,0.00021213,2]
[349622541,1737330654833,-163.3233948,0.00021213,2]
[349622542,1737330654843,-500.0,0.00021255,2]
[349622543,1737330654851,-180.36974707,0.00021255,2]
[349622544,1737330654860,-244.24,0.00021255,2]
[349622545,1737330654869,-500.0,0.00021255,2]
[349622546,1737330654878,-500.0,0.00021255,2]
[349622547,1737330654887,-500.0,0.00021255,2]
[349622548,1737330654897,-246.99701582,0.00021255,2]
[349622549,1737330654906,-500.0,0.00021255,2]
[349622550,1737330654916,-500.0,0.00021255,2]
[349622551,1737330654925,-500.0,0.00021255,2]
[349622552,1737330654934,-500.0,0.00021255,2]
[349622553,1737330654944,-500.0,0.00021255,2]
[349622554,1737330654957,-500.0,0.00021255,2]
[349622555,1737330654966,-500.0,0.00021255,2]
[349622556,1737330654975,-500.0,0.00021255,2]
[349622557,1737330654985,-500.0,0.00021255,2]
[349622558,1737330654994,-556.30632067,0.00021255,2]
[349622559,1737330655004,-500.0,0.00021255,2]
[349622560,1737330655139,-420.278442,0.00021255,2]
[349622561,1737330655149,-530.08060892,0.00021255,2]
[349622562,1737330655159,-500.0,0.00021255,2]
[349622563,1737330655168,-501.16422933,0.00021255,2]
[349622564,1737330655177,-500.0,0.00021255,2]
[349622565,1737330655187,-301.4417186,0.00021255,2]
[349622566,1737330655195,-500.0,0.00021255,2]
[349622567,1737330655208,-500.0,0.00021255,2]
[349622568,1737330655217,-500.0,0.00021255,2]
[349622569,1737330655226,-500.0,0.00021255,2]
[349622570,1737330655235,-500.0,0.00021255,2]
[349622571,1737330655244,-500.0,0.00021255,2]
[349622572,1737330655253,-547.399141,0.00021255,2]
[349622573,1737330655263,-500.0,0.00021255,2]
[349622574,1737330655272,-500.0,0.00021255,2]
[349622575,1737330655281,-500.0,0.00021255,2]
[349622576,1737330655290,-500.0,0.00021255,2]
[349622577,1737330655299,-500.0,0.00021255,2]
[349622578,1737330655310,-500.0,0.00021255,2]
[349622579,1737330655319,-500.0,0.00021255,2]
[349622580,1737330655328,-500.0,0.00021255,2]
[349622581,1737330655339,-541.4,0.00021255,2]
[349622582,1737330655349,-500.0,0.00021255,2]
[349622583,1737330655359,-648.63,0.00021255,2]
[349622584,1737330655369,-500.0,0.00021255,2]
[349622585,1737330655378,-500.0,0.00021255,2]
[349622586,1737330655387,-500.0,0.00021255,2]
[349622587,1737330655397,-1060.96,0.00021255,2]
[349622588,1737330655406,-330.4,0.00021255,2]
[349622589,1737330655416,-500.0,0.00021255,2]
[349622590,1737330655425,-500.0,0.00021255,2]
[349622591,1737330655434,-500.0,0.00021255,2]
[349622592,1737330655443,-799.96,0.00021255,2]
[349622593,1737330655456,-500.0,0.00021256,2]
[349622594,1737330655466,-500.0,0.00021256,2]
[349622595,1737330655475,-166.80627001,0.00021304,2]
[349622596,1737330655484,-500.0,0.00021308,2]
[349622597,1737330655494,-500.0,0.00021308,2]
[349622598,1737330655504,-500.0,0.00021308,2]
[349622599,1737330655514,-500.0,0.00021308,2]
[349622600,1737330655524,-500.0,0.00021308,2]
[349622601,1737330655533,-513.16,0.00021308,2]
[349622602,1737330655543,-500.0,0.00021308,2]
[349622603,1737330655553,-500.0,0.00021308,2]
[349622604,1737330655562,-2716.12,0.00021308,2]
[349622605,1737330655572,-697.66,0.00021308,2]
[349622606,1737330655581,-2200.29,0.00021308,2]
[349622607,1737330655591,-500.0,0.00021308,2]
[349622608,1737330655600,-571.27,0.00021308,2]
[349622609,1737330655610,-500.0,0.00021308,2]
[349622610,1737330655620,-500.0,0.00021308,2]
[349622611,1737330655632,-500.0,0.00021308,2]
[349622612,1737330655641,-500.0,0.00021308,2]
[349622613,1737330655653,-1108.47,0.00021308,2]
[349622614,1737330655664,-598.29,0.00021308,2]
[349622615,1737330655675,-500.0,0.00021308,2]